[Event "*** Titled Tuesday 3|2 Blitz (Early)"]
[Site "Chess.com"]
[Date "2016.12.06"]
[Round "1"]
[White "Noukii"]
[Black "Mepetmepe"]
[Result "1-0"]
[WhiteElo "2663"]
[BlackElo "2327"]
[TimeControl "180+2"]
[EndTime "11:08:50 PST"]
[Termination "Noukii won by resignation"]

1. d4 {[%clk 0:03:00.6]} 1... Nf6 {[%clk 0:03:00.6]} 2. c4 {[%clk 0:02:59.4]}
2... e5 {[%clk 0:03:01.7]} 3. dxe5 {[%clk 0:03:00.1]} 3... Ng4 {[%clk
0:03:02.7]} 4. e3 {[%clk 0:03:01.5]} 4... Nxe5 {[%clk 0:03:01.5]} 5. Nh3 {[%clk
0:03:03]} 5... Nbc6 {[%clk 0:03:01.6]} 6. Nf4 {[%clk 0:03:04.3]} 6... Bb4+
{[%clk 0:03:01.9]} 7. Bd2 {[%clk 0:03:05.5]} 7... Bxd2+ {[%clk 0:03:02.3]} 8.
Qxd2 {[%clk 0:03:06.2]} 8... O-O {[%clk 0:03:04.2]} 9. Nc3 {[%clk 0:03:07.7]}
9... d6 {[%clk 0:03:05.3]} 10. Be2 {[%clk 0:03:09.3]} 10... Be6 {[%clk
0:03:05.6]} 11. b3 {[%clk 0:03:09.6]} 11... Qf6 {[%clk 0:03:05.8]} 12. O-O
{[%clk 0:03:09.2]} 12... Rad8 {[%clk 0:03:02.7]} 13. Ncd5 {[%clk 0:03:08.8]}
13... Bxd5 {[%clk 0:03:02.9]} 14. Nxd5 {[%clk 0:03:09.8]} 14... Qg6 {[%clk
0:03:01.3]} 15. f4 {[%clk 0:03:08.7]} 15... Nd7 {[%clk 0:02:58.3]} 16. Nxc7
{[%clk 0:03:05.4]} 16... Nf6 {[%clk 0:02:58.9]} 17. Bf3 {[%clk 0:03:02.4]} 17...
Ne4 {[%clk 0:02:52.7]} 18. Qc2 {[%clk 0:02:36.7]} 18... Nc5 {[%clk 0:02:45]} 19.
Qxg6 {[%clk 0:02:35.7]} 19... hxg6 {[%clk 0:02:46.9]} 20. Rad1 {[%clk
0:02:31.3]} 20... Rd7 {[%clk 0:02:43.4]} 21. Nd5 {[%clk 0:02:31.8]} 21... Re8
{[%clk 0:02:43.2]} 22. Rfe1 {[%clk 0:02:31.9]} 22... a5 {[%clk 0:02:43.3]} 23.
Kf2 {[%clk 0:02:12.7]} 23... Nb4 {[%clk 0:02:42.7]} 24. Re2 {[%clk 0:02:10.4]}
24... Nxd5 {[%clk 0:02:39.9]} 25. Rxd5 {[%clk 0:02:09.1]} 25... Kf8 {[%clk
0:02:33.3]} 26. e4 {[%clk 0:02:05.8]} 26... b6 {[%clk 0:01:22.4]} 27. g3 {[%clk
0:02:00.6]} 27... f6 {[%clk 0:01:10.4]} 28. Re3 {[%clk 0:01:55.4]} 28... Kf7
{[%clk 0:00:55.5]} 29. h4 {[%clk 0:01:55.4]} 29... Red8 {[%clk 0:00:51.6]} 30.
Re2 {[%clk 0:01:49.5]} 30... Rc7 {[%clk 0:00:45]} 31. Red2 {[%clk 0:01:48.6]}
31... Rcd7 {[%clk 0:00:44]} 32. Ke3 {[%clk 0:01:46.3]} 32... Nb7 {[%clk
0:00:37.1]} 33. h5 {[%clk 0:01:41.2]} 33... gxh5 {[%clk 0:00:35.4]} 34. Bxh5+
{[%clk 0:01:43.1]} 34... Ke7 {[%clk 0:00:34.5]} 35. Bg4 {[%clk 0:01:43.5]} 35...
Rc7 {[%clk 0:00:35.8]} 36. Bf5 {[%clk 0:01:39.1]} 36... Rc5 {[%clk 0:00:31.2]}
37. Rh2 {[%clk 0:01:37.5]} 37... Rxd5 {[%clk 0:00:31.5]} 38. exd5 {[%clk
0:01:36.9]} 38... Re8 {[%clk 0:00:19.1]} 39. Bg6 {[%clk 0:01:37.8]} 39... Rg8
{[%clk 0:00:18.5]} 40. Kd4 {[%clk 0:01:38.9]} 40... Nd8 {[%clk 0:00:16.7]} 41.
a3 {[%clk 0:01:39]} 41... Nf7 {[%clk 0:00:15.6]} 42. Re2+ {[%clk 0:01:39.1]}
42... Kf8 {[%clk 0:00:16.3]} 43. Re6 {[%clk 0:01:40.2]} 43... Rh8 {[%clk
0:00:15.7]} 44. Bxf7 {[%clk 0:01:41]} 44... Kxf7 {[%clk 0:00:17.6]} 45. Rxd6
{[%clk 0:01:42.9]} 45... Rh3 {[%clk 0:00:19.5]} 46. Rxb6 {[%clk 0:01:43.9]}
46... Rxg3 {[%clk 0:00:21.4]} 47. c5 {[%clk 0:01:45.1]} 47... Rf3 {[%clk
0:00:21.4]} 48. c6 {[%clk 0:01:43.3]} 48... Rxf4+ {[%clk 0:00:22.4]} 49. Ke3
{[%clk 0:01:42.4]} 49... Rf1 {[%clk 0:00:23.1]} 50. c7 {[%clk 0:01:43.2]} 50...
Re1+ {[%clk 0:00:23.2]} 51. Kd4 {[%clk 0:01:44.5]} 51... Rd1+ {[%clk 0:00:24.3]}
52. Kc5 {[%clk 0:01:43.1]} 52... Ke7 {[%clk 0:00:22.5]} 53. Rb8 {[%clk
0:01:40.7]} 53... Rc1+ {[%clk 0:00:22.3]} 54. Kb6 {[%clk 0:01:42.2]} 54... Kd6
{[%clk 0:00:15]} 55. Rd8+ {[%clk 0:01:41.9]} 55... Ke5 {[%clk 0:00:16]} 56. d6
{[%clk 0:01:41.8]} 56... g5 {[%clk 0:00:15.6]} 57. d7 {[%clk 0:01:39.1]} 1-0

[Event "*** Titled Tuesday 3|2 Blitz (Early)"]
[Site "Chess.com"]
[Date "2016.12.06"]
[Round "1"]
[White "kleinebeer98"]
[Black "jup1978"]
[Result "1/2-1/2"]
[WhiteElo "2511"]
[BlackElo "2251"]
[TimeControl "180+2"]
[EndTime "11:08:50 PST"]
[Termination "Game drawn - insufficient material"]

1. e4 {[%clk 0:03:02]} 1... e5 {[%clk 0:03:00.3]} 2. Nf3 {[%clk 0:03:01.8]} 2...
Nc6 {[%clk 0:03:01.3]} 3. Bb5 {[%clk 0:03:03.4]} 3... a6 {[%clk 0:03:01.9]} 4.
Ba4 {[%clk 0:03:05.1]} 4... Nge7 {[%clk 0:03:02.6]} 5. O-O {[%clk 0:02:58.5]}
5... g6 {[%clk 0:03:03.6]} 6. d3 {[%clk 0:02:51.2]} 6... Bg7 {[%clk 0:03:04]} 7.
c3 {[%clk 0:02:51]} 7... O-O {[%clk 0:03:04.7]} 8. Nbd2 {[%clk 0:02:47.6]} 8...
b5 {[%clk 0:03:01.8]} 9. Bc2 {[%clk 0:02:43.9]} 9... d5 {[%clk 0:03:02.8]} 10.
exd5 {[%clk 0:02:41.9]} 10... Nxd5 {[%clk 0:03:04.7]} 11. Re1 {[%clk 0:02:43.2]}
11... Re8 {[%clk 0:03:05.3]} 12. a4 {[%clk 0:02:42.3]} 12... b4 {[%clk
0:03:04.4]} 13. Ne4 {[%clk 0:02:07.5]} 13... h6 {[%clk 0:02:30.3]} 14. Bb3
{[%clk 0:01:45.7]} 14... Na5 {[%clk 0:02:27]} 15. Bxd5 {[%clk 0:01:40.2]} 15...
Qxd5 {[%clk 0:02:28.9]} 16. Bxh6 {[%clk 0:01:41.7]} 16... bxc3 {[%clk 0:02:20]}
17. bxc3 {[%clk 0:01:38.6]} 17... Bf5 {[%clk 0:02:19.5]} 18. Bxg7 {[%clk
0:01:32.7]} 18... Kxg7 {[%clk 0:02:21.4]} 19. c4 {[%clk 0:01:26.7]} 19... Qd7
{[%clk 0:02:12.4]} 20. Qc2 {[%clk 0:01:12]} 20... Rad8 {[%clk 0:02:09.1]} 21.
Rad1 {[%clk 0:01:10.9]} 21... Nc6 {[%clk 0:02:03.5]} 22. Qc3 {[%clk 0:01:07.1]}
22... Bxe4 {[%clk 0:01:59.1]} 23. Rxe4 {[%clk 0:01:09]} 23... f6 {[%clk
0:01:53.8]} 24. h4 {[%clk 0:01:08.7]} 24... Nd4 {[%clk 0:01:53.1]} 25. Nxd4
{[%clk 0:00:39.8]} 25... exd4 {[%clk 0:01:55]} 26. Qe1 {[%clk 0:00:41.5]} 26...
Rxe4 {[%clk 0:01:54.1]} 27. Qxe4 {[%clk 0:00:43.4]} 27... Re8 {[%clk 0:01:53.9]}
28. Qb7 {[%clk 0:00:43]} 28... Qxa4 {[%clk 0:01:48.2]} 29. Qxc7+ {[%clk
0:00:43.3]} 29... Kh6 {[%clk 0:01:48.2]} 30. Qf4+ {[%clk 0:00:43.4]} 30... Kg7
{[%clk 0:01:48.6]} 31. Rb1 {[%clk 0:00:45]} 31... Qd7 {[%clk 0:01:45.2]} 32. h5
{[%clk 0:00:43.7]} 32... gxh5 {[%clk 0:01:42.1]} 33. Qf3 {[%clk 0:00:45]} 33...
Kg6 {[%clk 0:01:38.1]} 34. Rb7 {[%clk 0:00:42.7]} 34... Qe6 {[%clk 0:01:39]} 35.
Qg3+ {[%clk 0:00:40.4]} 35... Qg4 {[%clk 0:01:39.9]} 36. Qxg4+ {[%clk
0:00:34.1]} 36... hxg4 {[%clk 0:01:41.8]} 37. Rd7 {[%clk 0:00:32.4]} 37... a5
{[%clk 0:01:30.7]} 38. Rxd4 {[%clk 0:00:33]} 38... a4 {[%clk 0:01:31.9]} 39.
Rxg4+ {[%clk 0:00:27.2]} 39... Kf5 {[%clk 0:01:31.5]} 40. Rg7 {[%clk 0:00:28.7]}
40... Ra8 {[%clk 0:01:30.5]} 41. Rb7 {[%clk 0:00:29.1]} 41... a3 {[%clk
0:01:31.7]} 42. Rb1 {[%clk 0:00:30.7]} 42... a2 {[%clk 0:01:31.9]} 43. Ra1
{[%clk 0:00:32.3]} 43... Ke5 {[%clk 0:01:33.4]} 44. Kf1 {[%clk 0:00:29.5]} 44...
Kd4 {[%clk 0:01:34.9]} 45. Ke2 {[%clk 0:00:31]} 45... Kc3 {[%clk 0:01:35.1]} 46.
Ke3 {[%clk 0:00:32.2]} 46... Re8+ {[%clk 0:01:35.4]} 47. Kf4 {[%clk 0:00:32.6]}
47... Kb2 {[%clk 0:01:35.5]} 48. Rxa2+ {[%clk 0:00:31.4]} 48... Kxa2 {[%clk
0:01:37.4]} 49. Kf5 {[%clk 0:00:31.5]} 49... Kb3 {[%clk 0:01:37]} 50. Kxf6
{[%clk 0:00:26.8]} 50... Kc3 {[%clk 0:01:37.1]} 51. f4 {[%clk 0:00:27.6]} 51...
Kxd3 {[%clk 0:01:34.5]} 52. c5 {[%clk 0:00:28.6]} 52... Rc8 {[%clk 0:01:34.5]}
53. g4 {[%clk 0:00:29]} 53... Rxc5 {[%clk 0:01:35.3]} 54. g5 {[%clk 0:00:30.4]}
54... Ke4 {[%clk 0:01:36.3]} 55. g6 {[%clk 0:00:31.9]} 55... Rf5+ {[%clk
0:01:37.2]} 56. Ke6 {[%clk 0:00:29.4]} 56... Kxf4 {[%clk 0:01:35.7]} 57. g7
{[%clk 0:00:30.8]} 57... Rg5 {[%clk 0:01:35.3]} 58. Kf7 {[%clk 0:00:32.4]} 58...
Rf5+ {[%clk 0:01:36.4]} 59. Ke7 {[%clk 0:00:31.4]} 59... Re5+ {[%clk 0:01:37.2]}
60. Kf7 {[%clk 0:00:27.6]} 60... Rf5+ {[%clk 0:01:37]} 61. Ke7 {[%clk
0:00:28.2]} 61... Rg5 {[%clk 0:01:38]} 62. Kf7 {[%clk 0:00:29.3]} 62... Rxg7+
{[%clk 0:01:38.3]} 63. Kxg7 {[%clk 0:00:30.6]} 1/2-1/2

[Event "*** Titled Tuesday 3|2 Blitz (Early)"]
[Site "Chess.com"]
[Date "2016.12.06"]
[Round "1"]
[White "Firebullet"]
[Black "dretch"]
[Result "0-1"]
[WhiteElo "2314"]
[BlackElo "2616"]
[TimeControl "180+2"]
[EndTime "11:08:54 PST"]
[Termination "dretch won by resignation"]

1. d4 {[%clk 0:03:01]} 1... d5 {[%clk 0:02:58.4]} 2. c4 {[%clk 0:02:58.8]} 2...
c6 {[%clk 0:02:59.4]} 3. Nf3 {[%clk 0:02:57.8]} 3... Nf6 {[%clk 0:03:00.4]} 4.
Qb3 {[%clk 0:02:58]} 4... dxc4 {[%clk 0:02:59.9]} 5. Qxc4 {[%clk 0:02:58.4]}
5... Bf5 {[%clk 0:03:01.5]} 6. Nc3 {[%clk 0:02:58.8]} 6... e6 {[%clk 0:02:57.6]}
7. g3 {[%clk 0:02:59.5]} 7... Nbd7 {[%clk 0:02:58.8]} 8. Bg2 {[%clk 0:03:00.2]}
8... Bd6 {[%clk 0:03:00]} 9. O-O {[%clk 0:03:00.7]} 9... O-O {[%clk 0:03:00.3]}
10. Re1 {[%clk 0:03:01.6]} 10... e5 {[%clk 0:02:59.9]} 11. dxe5 {[%clk
0:02:54.6]} 11... Nxe5 {[%clk 0:03:00.3]} 12. Nxe5 {[%clk 0:02:55.5]} 12... Bxe5
{[%clk 0:03:01.5]} 13. Bf4 {[%clk 0:02:47.2]} 13... Be6 {[%clk 0:02:08.1]} 14.
Qb4 {[%clk 0:02:45.3]} 14... Bxf4 {[%clk 0:02:07.2]} 15. Qxf4 {[%clk 0:02:44.3]}
15... Qb6 {[%clk 0:02:07.7]} 16. Na4 {[%clk 0:02:27.1]} 16... Qb5 {[%clk
0:02:00.8]} 17. b3 {[%clk 0:02:24.9]} 17... Rad8 {[%clk 0:01:48.2]} 18. Rac1
{[%clk 0:02:22.5]} 18... Qa5 {[%clk 0:01:43.3]} 19. Red1 {[%clk 0:02:03.4]}
19... Bg4 {[%clk 0:01:36.5]} 20. Bf3 {[%clk 0:01:49.2]} 20... Bxf3 {[%clk
0:01:32.8]} 21. Qxf3 {[%clk 0:01:51.1]} 21... Rd2 {[%clk 0:01:33.4]} 22. Nc3
{[%clk 0:01:22.2]} 22... Rfd8 {[%clk 0:01:22.7]} 23. Rxd2 {[%clk 0:01:22.6]}
23... Rxd2 {[%clk 0:01:24.6]} 24. Qe3 {[%clk 0:01:24]} 24... Rd8 {[%clk
0:01:00]} 25. Na4 {[%clk 0:00:58.3]} 25... Qd2 {[%clk 0:00:43.4]} 26. Qxd2
{[%clk 0:00:42.1]} 26... Rxd2 {[%clk 0:00:45.3]} 27. Nc3 {[%clk 0:00:43.3]}
27... Kf8 {[%clk 0:00:36.9]} 28. Rd1 {[%clk 0:00:28.6]} 28... Rc2 {[%clk
0:00:34.8]} 29. Rd3 {[%clk 0:00:30.2]} 29... b5 {[%clk 0:00:30.1]} 30. a3 {[%clk
0:00:30.6]} 30... a5 {[%clk 0:00:29.7]} 31. e3 {[%clk 0:00:26.2]} 31... Ke7
{[%clk 0:00:28]} 32. Kg2 {[%clk 0:00:26.7]} 32... Rb2 {[%clk 0:00:19.3]} 33. Nd1
{[%clk 0:00:23.4]} 33... Ra2 {[%clk 0:00:20.2]} 34. b4 {[%clk 0:00:24.6]} 34...
axb4 {[%clk 0:00:19.4]} 35. axb4 {[%clk 0:00:26.5]} 35... Ra4 {[%clk 0:00:17.4]}
36. Rd4 {[%clk 0:00:24.7]} 36... Nd5 {[%clk 0:00:18.5]} 37. e4 {[%clk
0:00:24.9]} 37... Rxb4 {[%clk 0:00:18.9]} 38. Rd2 {[%clk 0:00:23.9]} 38... Rxe4
{[%clk 0:00:18.8]} 39. Nb2 {[%clk 0:00:22.3]} 39... Kd6 {[%clk 0:00:18.6]} 40.
Nd3 {[%clk 0:00:23.6]} 40... Rd4 {[%clk 0:00:19.7]} 41. Kf3 {[%clk 0:00:24.3]}
41... c5 {[%clk 0:00:20.6]} 42. Ke2 {[%clk 0:00:24.7]} 42... Nc3+ {[%clk
0:00:20.5]} 43. Ke3 {[%clk 0:00:25.6]} 43... Nd5+ {[%clk 0:00:21.8]} 44. Ke2
{[%clk 0:00:26.6]} 44... c4 {[%clk 0:00:23.4]} 45. Nc1 {[%clk 0:00:25.1]} 45...
Rxd2+ {[%clk 0:00:24.2]} 46. Kxd2 {[%clk 0:00:27]} 46... Kc5 {[%clk 0:00:25.8]}
0-1

[Event "*** Titled Tuesday 3|2 Blitz (Early)"]
[Site "Chess.com"]
[Date "2016.12.06"]
[Round "1"]
[White "MateusViageiro"]
[Black "GMKrikor"]
[Result "0-1"]
[WhiteElo "2248"]
[BlackElo "2529"]
[TimeControl "180+2"]
[EndTime "11:09:13 PST"]
[Termination "GMKrikor won by resignation"]

1. d4 {[%clk 0:03:01.2]} 1... Nf6 {[%clk 0:03:00.6]} 2. Nf3 {[%clk 0:03:02.6]}
2... e6 {[%clk 0:03:00.9]} 3. g3 {[%clk 0:03:04.1]} 3... b5 {[%clk 0:03:01]} 4.
Bg2 {[%clk 0:03:05.5]} 4... d5 {[%clk 0:03:01.5]} 5. O-O {[%clk 0:03:07.4]} 5...
Bb7 {[%clk 0:03:02.2]} 6. a4 {[%clk 0:03:08.5]} 6... b4 {[%clk 0:03:01.6]} 7. c3
{[%clk 0:03:09]} 7... Nbd7 {[%clk 0:02:55]} 8. Ne5 {[%clk 0:03:08.4]} 8... Nxe5
{[%clk 0:02:54.5]} 9. dxe5 {[%clk 0:03:08.9]} 9... Nd7 {[%clk 0:02:56.2]} 10. f4
{[%clk 0:03:08.9]} 10... Bc5+ {[%clk 0:02:12.1]} 11. Kh1 {[%clk 0:03:05.8]}
11... O-O {[%clk 0:02:13.7]} 12. cxb4 {[%clk 0:03:04]} 12... Bxb4 {[%clk
0:02:14.6]} 13. Qb3 {[%clk 0:03:04.1]} 13... a5 {[%clk 0:02:14.7]} 14. Nc3
{[%clk 0:03:04.2]} 14... c5 {[%clk 0:02:06.7]} 15. Nb5 {[%clk 0:03:02.4]} 15...
Ba6 {[%clk 0:01:49.2]} 16. e4 {[%clk 0:02:59.1]} 16... d4 {[%clk 0:01:47.1]} 17.
Rd1 {[%clk 0:02:52.4]} 17... Nb6 {[%clk 0:01:03.8]} 18. f5 {[%clk 0:02:36.7]}
18... c4 {[%clk 0:01:01.7]} 19. Qf3 {[%clk 0:02:34.1]} 19... Bxb5 {[%clk
0:00:51.5]} 20. axb5 {[%clk 0:02:32.4]} 20... f6 {[%clk 0:00:52.4]} 21. fxe6
{[%clk 0:02:21.9]} 21... fxe5 {[%clk 0:00:53.6]} 22. Qh5 {[%clk 0:02:21.7]}
22... Qf6 {[%clk 0:00:49.9]} 23. Bh3 {[%clk 0:02:10.6]} 23... Qf3+ {[%clk
0:00:46.3]} 24. Qxf3 {[%clk 0:02:10.5]} 24... Rxf3 {[%clk 0:00:48.2]} 25. Bd2
{[%clk 0:02:05.5]} 25... Bxd2 {[%clk 0:00:45.3]} 26. Rxd2 {[%clk 0:02:06.2]}
26... Kf8 {[%clk 0:00:45.1]} 27. Kg2 {[%clk 0:02:05.6]} 27... Rf6 {[%clk
0:00:46]} 28. Rf2 {[%clk 0:01:52.7]} 28... Rxf2+ {[%clk 0:00:45.4]} 29. Kxf2
{[%clk 0:01:53.7]} 29... Ke7 {[%clk 0:00:47.3]} 30. Ke2 {[%clk 0:01:53.7]} 30...
a4 {[%clk 0:00:48.5]} 31. Rf1 {[%clk 0:01:52.4]} 31... Rf8 {[%clk 0:00:49.4]}
32. Ra1 {[%clk 0:01:48.9]} 32... Kd6 {[%clk 0:00:47.3]} 33. Bf5 {[%clk
0:01:44.6]} 33... g6 {[%clk 0:00:47.2]} 34. Bh3 {[%clk 0:01:45.2]} 34... Kc5
{[%clk 0:00:41.8]} 35. Kd2 {[%clk 0:01:41.1]} 35... Rf2+ {[%clk 0:00:38.6]} 36.
Ke1 {[%clk 0:01:38.9]} 36... Rf8 {[%clk 0:00:38.7]} 37. Kd2 {[%clk 0:01:36.5]}
37... Kb4 {[%clk 0:00:39.9]} 38. Kc2 {[%clk 0:01:33.3]} 38... Rf2+ {[%clk
0:00:38.8]} 39. Kb1 {[%clk 0:01:32.7]} 39... Rf8 {[%clk 0:00:23.1]} 40. Ka2
{[%clk 0:01:28.4]} 40... Kxb5 {[%clk 0:00:24.2]} 41. Rf1 {[%clk 0:01:25.5]}
41... Re8 {[%clk 0:00:22]} 42. Rf7 {[%clk 0:01:26.1]} 42... d3 {[%clk
0:00:21.6]} 43. Kb1 {[%clk 0:01:26.1]} 43... Kc5 {[%clk 0:00:22.6]} 44. Kc1
{[%clk 0:01:26.8]} 44... Kd4 {[%clk 0:00:23.9]} 45. Kd2 {[%clk 0:01:27.8]} 45...
a3 {[%clk 0:00:25]} 46. bxa3 {[%clk 0:01:27.7]} 46... c3+ {[%clk 0:00:26.5]} 47.
Kd1 {[%clk 0:01:29]} 47... Nc4 {[%clk 0:00:27.8]} 48. Rd7+ {[%clk 0:01:27.1]}
48... Ke3 {[%clk 0:00:29.3]} 49. e7 {[%clk 0:01:24.4]} 49... Nb2+ {[%clk
0:00:21.4]} 50. Kc1 {[%clk 0:01:24.8]} 50... d2+ {[%clk 0:00:23.3]} 51. Kc2
{[%clk 0:01:25.9]} 51... d1=Q+ {[%clk 0:00:25.2]} 52. Rxd1 {[%clk 0:01:25.4]}
52... Nxd1 {[%clk 0:00:27.1]} 53. Kxd1 {[%clk 0:01:25]} 53... Rxe7 {[%clk
0:00:27.8]} 54. Kc2 {[%clk 0:01:26.1]} 54... Kd4 {[%clk 0:00:28.7]} 55. Bg2
{[%clk 0:01:23.2]} 55... Rb7 {[%clk 0:00:29.5]} 0-1

[Event "*** Titled Tuesday 3|2 Blitz (Early)"]
[Site "Chess.com"]
[Date "2016.12.06"]
[Round "1"]
[White "Zhani-Z"]
[Black "joppie2"]
[Result "1-0"]
[WhiteElo "2268"]
[BlackElo "2535"]
[TimeControl "180+2"]
[EndTime "11:09:22 PST"]
[Termination "Zhani-Z won by resignation"]

1. d4 {[%clk 0:02:53.4]} 1... d5 {[%clk 0:02:59.3]} 2. c4 {[%clk 0:02:53.1]}
2... c6 {[%clk 0:03:00.8]} 3. Nf3 {[%clk 0:02:52.3]} 3... Nf6 {[%clk 0:03:02.4]}
4. e3 {[%clk 0:02:53.3]} 4... g6 {[%clk 0:03:02.4]} 5. Nc3 {[%clk 0:02:39.4]}
5... Bg7 {[%clk 0:03:00]} 6. Be2 {[%clk 0:02:23.9]} 6... O-O {[%clk 0:03:00.1]}
7. O-O {[%clk 0:02:24.7]} 7... e6 {[%clk 0:03:00.5]} 8. b3 {[%clk 0:02:23.1]}
8... Nbd7 {[%clk 0:03:00.1]} 9. Bb2 {[%clk 0:02:23.7]} 9... Re8 {[%clk
0:03:00.1]} 10. Re1 {[%clk 0:02:16.6]} 10... b6 {[%clk 0:03:00.2]} 11. Bf1
{[%clk 0:02:16.9]} 11... Bb7 {[%clk 0:03:00.9]} 12. Rc1 {[%clk 0:02:11.7]} 12...
Qc7 {[%clk 0:02:56.2]} 13. Qc2 {[%clk 0:01:53.6]} 13... Rad8 {[%clk 0:02:54.9]}
14. Ne5 {[%clk 0:01:37.4]} 14... Qb8 {[%clk 0:02:49.8]} 15. f4 {[%clk
0:01:37.5]} 15... c5 {[%clk 0:02:47.9]} 16. cxd5 {[%clk 0:01:14]} 16... exd5
{[%clk 0:02:44.4]} 17. Qf2 {[%clk 0:01:13.6]} 17... a6 {[%clk 0:02:41.4]} 18.
Red1 {[%clk 0:01:11.7]} 18... b5 {[%clk 0:02:42.8]} 19. g3 {[%clk 0:01:01]}
19... b4 {[%clk 0:02:42.6]} 20. Na4 {[%clk 0:00:58.2]} 20... Ne4 {[%clk
0:02:44]} 21. Qe1 {[%clk 0:00:59.3]} 21... cxd4 {[%clk 0:02:33.7]} 22. exd4
{[%clk 0:00:56.6]} 22... f6 {[%clk 0:02:31.8]} 23. Nxd7 {[%clk 0:00:50.8]} 23...
Rxd7 {[%clk 0:02:33.7]} 24. Qxb4 {[%clk 0:00:47.3]} 24... g5 {[%clk 0:02:23.4]}
25. Nc5 {[%clk 0:00:40.8]} 25... Nxc5 {[%clk 0:02:21.3]} 26. dxc5 {[%clk
0:00:42]} 26... Qa8 {[%clk 0:02:18.3]} 27. fxg5 {[%clk 0:00:38.9]} 27... d4
{[%clk 0:02:19]} 28. Bxd4 {[%clk 0:00:26.8]} 28... Re4 {[%clk 0:02:18.2]} 29. c6
{[%clk 0:00:24.4]} 29... Bxc6 {[%clk 0:02:18.8]} 30. Qc4+ {[%clk 0:00:25.5]}
30... Bd5 {[%clk 0:02:09.9]} 31. Qc8+ {[%clk 0:00:25.9]} 31... Qxc8 {[%clk
0:01:56.8]} 32. Rxc8+ {[%clk 0:00:26.2]} 32... Kf7 {[%clk 0:01:58.3]} 33. Bxf6
{[%clk 0:00:27.1]} 33... Bf8 {[%clk 0:01:57.8]} 34. Rxd5 {[%clk 0:00:26]} 34...
Rxd5 {[%clk 0:01:57.8]} 35. Bc4 {[%clk 0:00:27.1]} 35... Rxc4 {[%clk 0:01:56.8]}
36. Rxc4 {[%clk 0:00:21.5]} 36... Rd1+ {[%clk 0:01:57.4]} 37. Kf2 {[%clk
0:00:22.6]} 37... Rd2+ {[%clk 0:01:58.9]} 38. Kf3 {[%clk 0:00:23]} 38... Rxa2
{[%clk 0:01:59.2]} 39. h4 {[%clk 0:00:23.7]} 39... Bd6 {[%clk 0:01:58.8]} 40.
Rc3 {[%clk 0:00:22.1]} 40... a5 {[%clk 0:01:56.3]} 41. Rd3 {[%clk 0:00:22.7]}
41... Bf8 {[%clk 0:01:54.5]} 42. g4 {[%clk 0:00:23]} 42... Rh2 {[%clk
0:01:51.3]} 43. h5 {[%clk 0:00:22.2]} 43... Rh1 {[%clk 0:01:49.1]} 44. Rd7+
{[%clk 0:00:21.7]} 44... Kg8 {[%clk 0:01:47.9]} 45. g6 {[%clk 0:00:21.6]} 45...
Rf1+ {[%clk 0:01:48.6]} 46. Ke4 {[%clk 0:00:22.5]} 46... Rxf6 {[%clk 0:01:50.5]}
47. Rxh7 {[%clk 0:00:21.7]} 47... Rb6 {[%clk 0:01:45]} 48. g5 {[%clk 0:00:21.9]}
48... Rxb3 {[%clk 0:01:45.2]} 49. h6 {[%clk 0:00:22.2]} 49... Rb6 {[%clk
0:01:38.3]} 50. g7 {[%clk 0:00:22.3]} 50... Rb4+ {[%clk 0:01:18.3]} 51. Kf5
{[%clk 0:00:21.5]} 51... Rb5+ {[%clk 0:01:16.3]} 52. Kg6 {[%clk 0:00:21.5]}
52... Rxg5+ {[%clk 0:01:16.8]} 53. Kxg5 {[%clk 0:00:21.6]} 53... Bxg7 {[%clk
0:01:02.6]} 54. Rxg7+ {[%clk 0:00:22.1]} 1-0

[Event "*** Titled Tuesday 3|2 Blitz (Early)"]
[Site "Chess.com"]
[Date "2016.12.06"]
[Round "1"]
[White "stuffings101"]
[Black "Kouzari"]
[Result "0-1"]
[WhiteElo "2172"]
[BlackElo "2470"]
[TimeControl "180+2"]
[EndTime "11:09:40 PST"]
[Termination "Kouzari won on time"]

1. Nf3 {[%clk 0:03:01.9]} 1... d5 {[%clk 0:02:51.4]} 2. g3 {[%clk 0:03:02.9]}
2... c6 {[%clk 0:02:52.9]} 3. Bg2 {[%clk 0:03:03.8]} 3... Nf6 {[%clk 0:02:54.8]}
4. O-O {[%clk 0:03:04.7]} 4... Bf5 {[%clk 0:02:56.7]} 5. d3 {[%clk 0:03:05.3]}
5... h6 {[%clk 0:02:56.2]} 6. Nbd2 {[%clk 0:03:06]} 6... e6 {[%clk 0:02:57.4]}
7. b3 {[%clk 0:03:06.8]} 7... Bh7 {[%clk 0:02:57.4]} 8. Bb2 {[%clk 0:03:07.6]}
8... Be7 {[%clk 0:02:59]} 9. Qe1 {[%clk 0:03:06.6]} 9... O-O {[%clk 0:03:00.1]}
10. e4 {[%clk 0:03:07.4]} 10... a5 {[%clk 0:03:01.7]} 11. a3 {[%clk 0:03:06.7]}
11... Qb6 {[%clk 0:03:01.7]} 12. Qe2 {[%clk 0:02:52.3]} 12... Re8 {[%clk
0:02:44.4]} 13. Kh1 {[%clk 0:02:36.9]} 13... c5 {[%clk 0:02:32.2]} 14. a4 {[%clk
0:02:18.5]} 14... Nc6 {[%clk 0:02:25.4]} 15. Ne5 {[%clk 0:02:08.3]} 15... Nxe5
{[%clk 0:02:08.2]} 16. Bxe5 {[%clk 0:02:07.9]} 16... Rad8 {[%clk 0:02:09]} 17.
f4 {[%clk 0:02:05.1]} 17... dxe4 {[%clk 0:02:00.9]} 18. Nxe4 {[%clk 0:02:04.8]}
18... Bxe4 {[%clk 0:01:58.1]} 19. dxe4 {[%clk 0:02:01.2]} 19... Rd7 {[%clk
0:01:48.1]} 20. Bc3 {[%clk 0:01:59]} 20... Red8 {[%clk 0:01:47.9]} 21. g4 {[%clk
0:01:59.3]} 21... Ne8 {[%clk 0:01:37.2]} 22. f5 {[%clk 0:01:54.6]} 22... exf5
{[%clk 0:01:34.7]} 23. gxf5 {[%clk 0:01:52.8]} 23... Bg5 {[%clk 0:01:25.8]} 24.
e5 {[%clk 0:01:42.1]} 24... Nc7 {[%clk 0:01:07.2]} 25. e6 {[%clk 0:01:29.5]}
25... fxe6 {[%clk 0:01:06.5]} 26. f6 {[%clk 0:01:30.6]} 26... Nd5 {[%clk
0:01:01.9]} 27. Bxd5 {[%clk 0:01:16.4]} 27... exd5 {[%clk 0:01:01.9]} 28. fxg7
{[%clk 0:01:07.6]} 28... d4 {[%clk 0:00:58.8]} 29. Rf8+ {[%clk 0:00:54.2]} 29...
Kxg7 {[%clk 0:00:50.3]} 30. Rxd8 {[%clk 0:00:54.8]} 30... Rxd8 {[%clk
0:00:44.7]} 31. Qe5+ {[%clk 0:00:45.6]} 31... Qf6 {[%clk 0:00:27.5]} 32. Qxf6+
{[%clk 0:00:44.3]} 32... Bxf6 {[%clk 0:00:28.8]} 33. Bxa5 {[%clk 0:00:44.2]}
33... Re8 {[%clk 0:00:30.3]} 34. Rg1+ {[%clk 0:00:44.5]} 34... Kf7 {[%clk
0:00:30.9]} 35. Bb6 {[%clk 0:00:45]} 35... Re2 {[%clk 0:00:30.5]} 36. Rg2 {[%clk
0:00:45.6]} 36... Rxg2 {[%clk 0:00:28]} 37. Kxg2 {[%clk 0:00:45.6]} 37... Be7
{[%clk 0:00:29.7]} 38. Kf3 {[%clk 0:00:46.7]} 38... Ke6 {[%clk 0:00:31.1]} 39.
Ke4 {[%clk 0:00:47.2]} 39... Bd6 {[%clk 0:00:33]} 40. h3 {[%clk 0:00:46.9]}
40... h5 {[%clk 0:00:34.5]} 41. Bd8 {[%clk 0:00:44.4]} 41... Kd7 {[%clk
0:00:34.6]} 42. Bg5 {[%clk 0:00:42.2]} 42... Kc6 {[%clk 0:00:35.5]} 43. Bf4
{[%clk 0:00:37.5]} 43... Bxf4 {[%clk 0:00:32.3]} 44. Kxf4 {[%clk 0:00:38.6]}
44... Kd5 {[%clk 0:00:34]} 45. h4 {[%clk 0:00:14.3]} 45... b6 {[%clk 0:00:25.8]}
46. Kf5 {[%clk 0:00:14.7]} 46... c4 {[%clk 0:00:26]} 47. bxc4+ {[%clk
0:00:15.1]} 47... Kxc4 {[%clk 0:00:27.2]} 48. Ke4 {[%clk 0:00:15.4]} 48... Kc3
{[%clk 0:00:23]} 49. Ke5 {[%clk 0:00:16.5]} 49... Kxc2 {[%clk 0:00:23.6]} 50.
Kxd4 {[%clk 0:00:17.5]} 50... Kb3 {[%clk 0:00:25.3]} 0-1